Cogmind - Beta 15 @@@ ROGUE MODE // 2025.05.24 @ 04:37:05 Player: Sinthome Result: Destroyed by JR-PB8(R) with Subdweller Laser Performance ------------- Evolutions (0) 0 Regions Visited (3) 600 Robots Destroyed (23) 115 Value Destroyed (363) 363 Prototype IDs (1) 20 Alien Tech Used (0) 0 Bonus (0) 0 TOTAL SCORE: 1098 Bonus ------- None Cogmind --------- Core Integrity 0/250 Matter 134/300 Energy 99/100 System Corruption 4% Temperature Cool (6) Movement Core (50) Location -10/Subcaves Parts ------- > --- POWER (1) -------- (None) > --- PROPULSION (2) --- (None) > --- UTILITY (2) ------ (None) > --- WEAPON (2) ------- Light Assault Rifle > --- INVENTORY (5) ---- Light Treads Aluminum Leg Small Storage Unit Medium Matter Pod (0) Faulty Experimental Sensor Array Peak State ------------ > --- POWER ------------ Light Ion Engine > --- PROPULSION ------- Aluminum Leg Aluminum Leg > --- UTILITY ---------- Small Storage Unit Experimental Sensor Array > --- WEAPON ----------- EM Pulse Gun Grenade Launcher > --- INVENTORY -------- Light Ion Engine Light Treads Light Treads Medium Matter Pod EM Pulse Gun Light Assault Rifle Grenade Launcher [Rating: 15] Favorites ----------- Power Light Ion Engine Engine Light Ion Engine Propulsion Light Treads Treads Light Treads Leg Aluminum Leg Utility Small Storage Unit Device Experimental Sensor Array Storage Small Storage Unit Weapon Grenade Launcher Energy Gun EM Pulse Gun Ballistic Gun Light Assault Rifle Launcher Grenade Launcher Build | -11 -10 -10 -10 ------- Run | Yrd Mat Min Sub Slots Evolved . | . . . . Power . | . . . . Propulsion . | . . . . Utility . | . . . . Weapon . | . . . . Parts Attached 17 | 6 2 8 1 Power 3 | 1 . 2 . Engine 3 | 1 . 2 . Core . | . . . . Reactor . | . . . . Propulsion 4 | 2 . 2 . Treads 2 | . . 2 . Leg 2 | 2 . . . Wheel . | . . . . Hover . | . . . . Flight . | . . . . Utility 4 | 1 1 2 . Device 1 | . . 1 . Storage 3 | 1 1 1 . Processor . | . . . . Hackware . | . . . . Protection . | . . . . Artifact . | . . . . Weapon 6 | 2 1 2 1 Energy Gun 2 | 1 . 1 . Energy Cannon . | . . . . Ballistic Gun 2 | 1 . . 1 Ballistic Cannon . | . . . . Launcher 2 | . 1 1 . Special Weapon . | . . . . Impact Weapon . | . . . . Slashing Weapon . | . . . . Piercing Weapon . | . . . . Special Melee Weapon . | . . . . Unidentified Prototypes 1 | . . 1 . Parts Lost 8 | . . 2 6 Power 3 | . . 1 2 Propulsion 1 | . . . 1 Utility . | . . . . Weapon 4 | . . 1 3 Highest Loss Streak 4 | . . 2 4 To Critical Strikes . | . . . . Average Backups 4 | 2 4 5 4 Power . | . 1 . . Propulsion 1 | 1 2 1 1 Utility . | . . 1 1 Weapon 1 | . 1 2 1 Tool/Special . | . . . . Unused Backups 2 | . . 2 . Power . | . . . . Propulsion . | . . . . Utility . | . . . . Weapon 2 | . . 2 . Tool/Special . | . . . . Average Slot Usage (%) 95 | . 85 99 95 Engine 13 | . 14 13 13 Treads 17 | . . 19 26 Leg 10 | . 28 8 . Storage 25 | . 14 28 27 Energy Gun 12 | . 14 14 6 Ballistic Gun 1 | . 1 . 7 Launcher 13 | . 12 14 12 Peak Build Rating 15 | 6 7 15 8 Average Rating 7 | 5 6 7 7 On Entrance 5 | . 6 7 8 Naked Turns . | . . . . Heaviest Build 15 | 12 15 15 15 Greatest Support 40 | 20 20 40 40 Greatest Overweight (x) 2 | 2 . 1 . Average Overweight (x) . | . . . . Largest Inventory Capacity 8 | 8 8 8 8 Average Capacity 7 | 7 8 8 7 Most Carried 8 | 4 6 8 5 Average Carried 4 | 2 4 5 4 Final Capacity 8 | 8 8 8 5 Final Carried 6 | 4 6 5 5 Class Distribution -------------------- 100% | Mutant Dominant Class ---------------- Mutant | -10/Materials Mutant | -10/Mines Mutant | -10/Subcaves Resources | -11 -10 -10 -10 ----------- Run | Yrd Mat Min Sub Matter Collected 426 | 245 32 132 17 Remotely . | . . . . Salvage Created 308 | . 100 191 17 Parts 38 | . 18 19 1 Haulers Intercepted . | . . . . Recyclers Shooed . | . . . . Parts Field Recycled . | . . . . Retrieved Matter . | . . . . Parts Self-Destructed 2 | . . . 2 Prevented . | . . . . Kills | -11 -10 -10 -10 ------- Run | Yrd Mat Min Sub Combat Hostiles Destroyed 18 | . 8 9 1 Guns 7 | . . 6 1 AOE 11 | . 8 3 . Classes Destroyed 6 | . 5 1 . Worker 2 | . 2 . . Tunneler 1 | . 1 . . Recycler 1 | . . 1 . Watcher 1 | . 1 . . Swarmer 14 | . 6 7 1 Grunt 4 | . 2 2 . Best Kill Streak 8 | . 8 3 1 Combat Bots Only 5 | . 5 3 1 Max Kills in Single Turn 3 | . 3 1 1 Gunslinging . | . . . . Exploded 3 | . 3 1 . Melee . | . . . . Uniques/NPCs Destroyed . | . . . . Combat | -11 -10 -10 -10 -------- Run | Yrd Mat Min Sub Hostile Shots Fired 108 | . 16 49 43 Missed 29 | . 7 13 9 Hits 79 | . 9 36 34 Projectile 79 | . 9 36 34 Critical Strikes 2 | . . 2 . Damage Taken 1007 | . 158 451 398 Core 266 | . 69 111 86 Absorbed by Shields . | . . . . Core Remaining (%) 100 | 100 . . . Volleys Fired 58 | . 10 23 25 Largest 2 | . 2 2 2 Hottest 70 | . 70 70 50 Shots Fired 76 | . 18 31 27 Gun 59 | . 10 24 25 Cannon . | . . . . Launcher 17 | . 8 7 2 Special . | . . . . Kinetic 14 | . . . 14 Thermal . | . . . . Explosive 17 | . 8 7 2 Electromagnetic 45 | . 10 24 11 Robot Hit Streak 9 | . 1 4 9 Robot Miss Streak 4 | . 2 2 4 Penetration Max . | . . . . Secondary Targets . | . . . . Shots Hit Robots 30 | . 2 13 15 Core Hits 39 | . 18 17 4 Critical Kills . | . . . . Critical Parts Destroyed 1 | . . . 1 Critical Strikes 1 | . . . 1 Destroy 1 | . . . 1 Melee Attacks . | . . . . Impact . | . . . . Slashing . | . . . . Piercing . | . . . . Sneak Attacks . | . . . . Combat Hostiles . | . . . . Follow-up Attacks . | . . . . Damage Inflicted 1214 | . 599 412 203 Guns 259 | . 42 104 113 Cannons . | . . . . Explosions 955 | . 557 308 90 Melee . | . . . . Ramming . | . . . . Kinetic 69 | . . . 69 Thermal . | . . . . Explosive 955 | . 557 308 90 Electromagnetic 190 | . 42 104 44 Impact . | . . . . Slashing . | . . . . Piercing . | . . . . Highest Corruption 4 | . 4 4 4 Average Corruption 3 | . 3 4 4 Corruption Purged . | . . . . Corruption Blocked . | . . . . Effects 26 | . 3 14 9 Message Errors 7 | . . 4 3 Matter Fused 6 | . 2 3 1 Energy Discharges 4 | . . 2 2 Parts Rejected 1 | . . 1 . Data Loss (minor) 5 | . 1 2 2 Data Loss (major) 1 | . . 1 . Misfires 1 | . . 1 . Weapon Failures 1 | . . . 1 Overload Shots . | . . . . Overflow Damage 5 | . 5 . . Projectiles . | . . . . Explosions 5 | . 5 . . Melee . | . . . . Knockbacks . | . . . . Impact . | . . . . Kinetic . | . . . . Secondary . | . . . . Self-Inflicted Damage 93 | . 55 38 . Shots 5 | . 3 2 . Rammed . | . . . . Targets Rammed . | . . . . Kicked . | . . . . Crushed . | . . . . Highest Temperature 159 | . 72 159 . Average Temperature 56 | . 26 75 . Received Heat Transfer 255 | . 36 165 54 Siege Activations . | . . . . Martial Activations . | . . . . Shielding Activations . | . . . . Robots Disrupted . | . . . . Combat Hostiles . | . . . . Robots Corrupted . | . . . . Combat Hostiles . | . . . . Parts Fried . | . . . . Impact Corruptions . | . . . . Robots Melted . | . . . . Combat Hostiles . | . . . . Parts Melted . | . . . . Heat Transferred . | . . . . Parts Sabotaged . | . . . . Parts Stolen . | . . . . Parts Stripped . | . . . . Power Chain Reactions . | . . . . Alert | -11 -10 -10 -10 ------- Run | Yrd Mat Min Sub Maximum Alert Level 1 | . 1 . . Low Security (%) 88 | 100 50 100 . Level 1 11 | . 49 . . Level 2 . | . . . . Level 3 . | . . . . Level 4 . | . . . . Level 5 . | . . . . High Security . | . . . . Max Security . | . . . . Peak Influence 272 | . 272 170 . Initial 82 | . . 82 . Average 101 | . 166 90 . Influence Increases 665 | . 312 278 75 Destroy 0b10 Robot/C 360 | . 160 180 20 Destroy 0b10 Robot/NC 25 | . 20 5 . Destroy Leader 72 | . 32 30 10 Successful Hack 7 | . 7 . . Disable Machine 45 | . 45 . . Destroy Structure 81 | . 48 33 . Lose Combat Pursuer 75 | . . 30 45 Influence Decreases 665 | . 100 484 81 Entered New Map 134 | . . 130 4 Time Decay 486 | . 100 334 52 Lost Part 45 | . . 20 25 Squads Dispatched . | . . . . Investigation . | . . . . Extermination . | . . . . Reinforcement . | . . . . Assault . | . . . . Garrison . | . . . . Intercept . | . . . . Searches Triggered . | . . . . Construction Impeded . | . . . . Haulers Reinforced . | . . . . Active Scanning Responses . | . . . . Cargo Convoy Interrupts . | . . . . Stealth | -11 -10 -10 -10 --------- Run | Yrd Mat Min Sub Distress Signals 1 | . . 1 . Communications Jammed . | . . . . Distress Signals . | . . . . Times Spotted 26 | . 10 10 6 Peak Tracking Total 4 | . 3 4 4 Tactical Retreats 4 | . . 2 2 Traps | -11 -10 -10 -10 ------- Run | Yrd Mat Min Sub Traps Triggered 2 | . 2 . . Indirectly . | . . . . Trap Hack Attempts . | . . . . Triggered . | . . . . Disarmed . | . . . . Reprogrammed . | . . . . Reused . | . . . . Traps Extracted . | . . . . Installed . | . . . . Triggered . | . . . . Machines | -11 -10 -10 -10 ---------- Run | Yrd Mat Min Sub Machines Disabled 3 | . 3 . . Max in Single Turn 1 | . 1 . . Machines Repaired . | . . . . Machines Dismantled . | . . . . Machines Sabotaged . | . . . . Overloaded Fab Kills . | . . . . Hacking | -11 -10 -10 -10 --------- Run | Yrd Mat Min Sub Machines Accessed 1 | . 1 . . Terminals 1 | . 1 . . Fabricators . | . . . . Repair Stations . | . . . . Recycling Units . | . . . . Scanalyzers . | . . . . Garrison Access . | . . . . Total Hacks 4 | . 4 . . Successful 1 | . 1 . . Failed 3 | . 3 . . Catastrophic . | . . . . Database Lockouts . | . . . . Manual . | . . . . Terminals 4 | . 4 . . Fabricators . | . . . . Repair Stations . | . . . . Recycling Units . | . . . . Scanalyzers . | . . . . Garrison Access . | . . . . Terminal Hacks 1 | . 1 . . Branch Access Points 1 | . 1 . . Fabricator Hacks . | . . . . Repair Station Hacks . | . . . . Recycling Unit Hacks . | . . . . Scanalyzer . | . . . . Garrison Access Hacks . | . . . . Unauthorized Hacks . | . . . . Terminals . | . . . . Fabricators . | . . . . Repair Stations . | . . . . Recycling Units . | . . . . Scanalyzers . | . . . . Garrison Access . | . . . . Data Cores Recovered . | . . . . Used . | . . . . Hacking Detections 1 | . 1 . . Full Trace Events 1 | . 1 . . Feedback Events . | . . . . Feedback Blocked . | . . . . Robot Schematics Acquired . | . . . . Robots Built . | . . . . Authchips . | . . . . Time . | . . . . Total Robot Build Rating . | . . . . Part Schematics Acquired . | . . . . Parts Built . | . . . . Authchips . | . . . . Time . | . . . . Total Part Build Rating . | . . . . Parts Repaired . | . . . . Time . | . . . . Parts Recycled . | . . . . Recycled Matter . | . . . . Retrieved Matter . | . . . . Retrieved Components . | . . . . Parts Scanalyzed . | . . . . Part Schematics Acquired . | . . . . Parts Damaged . | . . . . Bothacking | -11 -10 -10 -10 ------------ Run | Yrd Mat Min Sub Used RIF Installer . | . . . . Robots Hacked . | . . . . Non-combat . | . . . . Combat . | . . . . Robot Hacks Applied . | . . . . Relay Couplers Released . | . . . . Fabnet Peak Effective % . | . . . . Robots Rewired . | . . . . Allies Hacked . | . . . . Hacks Repelled . | . . . . Allies | -11 -10 -10 -10 -------- Run | Yrd Mat Min Sub Total Allies . | . . . . Largest Group . | . . . . Highest-Rated Group . | . . . . Highest-Rated Ally . | . . . . Total Orders . | . . . . Ally Attacks . | . . . . Total Damage . | . . . . Kills . | . . . . Allies Corrupted . | . . . . Allies Melted . | . . . . Intel | -11 -10 -10 -10 ------- Run | Yrd Mat Min Sub Active Infowar (turns) . | . . . . Robot Analysis Total . | . . . . Derelict Logs Recovered 1 | . . 1 . Drone Launches . | . . . . Drone Recoveries . | . . . . Exploration | -11 -10 -10 -10 ------------- Run | Yrd Mat Min Sub Turns Passed 1387 | 79 249 759 300 Spaces Moved 847 | 55 180 458 154 Core 5 | 5 . . . Treads 447 | . . 293 154 Legs 395 | 50 180 165 . Wheels . | . . . . Hover . | . . . . Flight . | . . . . Fastest Speed 50 | 50 120 120 160 Average Speed 143 | 120 120 150 160 Slowest Speed 190 | 190 120 190 160 Overloaded Moves . | . . . . Propulsion Burnouts . | . . . . Robots Hopped . | . . . . Potential Cave-ins . | . . . . Cave-ins Triggered . | . . . . Exploration Rate (%) 29 | 3 36 72 6 Regions Visited 3 Branch Regions 2 Pre-discovered Areas . | . . . . Known Exits Taken 1 | . 1 . . Unknown Exits Taken 2 | 1 . 1 . Scrap Searched 1 | . . 1 . Spaces Dug . | . . . . Terrain Destroyed 102 | . 47 45 10 Melee . | . . . . Projectile . | . . . . AOE 102 | . 47 45 10 Terrain Rammed . | . . . . Walls Destroyed . | . . . . Machines Disabled . | . . . . Actions | -11 -10 -10 -10 --------- Run | Yrd Mat Min Sub Total 938 | 64 194 495 185 Wait 3 | . 1 2 . Move 844 | 54 179 457 154 Hop . | . . . . Pick Up 8 | 4 2 2 . Fast Attach 7 | 6 1 . . Attach 6 | . . 3 3 Detach 3 | . . . 3 Swap 7 | . 1 6 . Drop 2 | . . 2 . Fire 58 | . 10 23 25 Melee . | . . . . Ram . | . . . . Kick . | . . . . Crush . | . . . . Escape Stasis . | . . . . Rewire . | . . . . Trap . | . . . . Miscellaneous . | . . . . Route ------- -11/Scrapyard -10/Materials -10/Mines (discovered 2 exits: [*Mat] / [*Sub]) -10/Subcaves History --------- Turn | Location | Event 28 | -11/Scrapyard | Discovered new exit (range 14) 80 | -11/Scrapyard | Entered Materials 216 | -10/Materials | Identified exit to Mines 302 | -10/Materials | Build established: Mutant 329 | -10/Materials | Entered Mines 396 | -10/Mines | Discovered new exit (range 7) 477 | -10/Mines | Learned 2 Materials zone layouts 480 | -10/Mines | YI-UF0 nonchalantly dropped a Grenade Launcher on the ground 498 | -10/Mines | Found a damaged Exp. Sensor Array with a note attached 501 | -10/Mines | Found Prototype Device 501 | -10/Mines | Identified Exp. Sensor Array 609 | -10/Mines | Core integrity fell below 50% 1070 | -10/Mines | Discovered new exit (range 9) 1088 | -10/Mines | Entered Subcaves 1220 | -10/Subcaves | Core integrity fell below 20% 1388 | -10/Subcaves | Destroyed by JR-PB8(R) with Subdweller Laser Last Messages --------------- 01212_ Grenade Launcher destroyed. 01217_ Destroyed Flight Unit. 01221_ S-10 Pest destroyed. 01224_ Z,SNUKETZ#GME,RIPUJG/P K=Z 01226_ S-10 Pest misfires. 01228_ EM Pulse Gun destroyed. 01230_ Flight Unit fries itself beyond repair. 01232_ S-10 Pest misfires. 01242_ S-10 Pest suffers critical hit (Destroy). 01242_ Destroyed Lgt. Assault Rifle. 01247_ Acquired 17 matter. 01258_ System corrupted: Energy discharge (-26). 01313_ System corrupted: Component data lost. 01344_ YFZ VEPB3ZU5GV0 5 WYARJ P 01358_ Lgt. Ion Engine destroyed. 01361_ System corrupted: Component data lost. 01362_ Lgt. Treads destroyed. 01378_ Lgt. Ion Engine destroyed. 01379_ System corrupted: Grenade Launcher failed to launch. 01383_ Grenade Launcher destroyed. Map ----- +----------------------------------------------------+ | ?????????????????????????????????????????????????? | | ?????????????????????????????????????????????????? | | ?????????????????????????????????????????????????? | | ??????????????????##?????????????????????????????? | | ?????????????????? ???????????????????????????? | | ?????????????????? ??????????????????????????? | | ?????????????????? ???????????????????????????? | | ?????????????????? ????????????????????????????? | | ?????????????????? ????????????????????????????? | | ????????????????## ?????????????????????????????? | | ????????????##### ??????????????????????????????? | | ???????????## #??????????????????????????????? | | ???????????# #??????????????????????????????? | | ???????????# ##?????????????????????????????? | | ???????????# #?????????????????????????????? | | ??????????## #?????????????????????????????? | | ??????????# ##???####?????????????????????? | | ??????????# ?## ##????????????????????? | | ??????????# ## ##???????????????????? | | ?????????# ## #??????####?????????? | | ?????????## #### ######## #?????????? | | ??????????###???# R # # # #?????????? | | ?????????????????## #?????????? | | ???????????????????# ##?????????? | | ???????????????????# ## # ##?????????? | | ???????????????????## ##@ ###### #?????????? | | ????????????????????##### #????## #?????????? | | ???????????????????????# ########### #?????????? | | ???????????????????????# ### ##??###?????????? | | ???????????????????##### ## ##?????????????? | | ???????????????????# # ## ##????????????? | | ???????????????????# ## ## #????????????? | | ???????????????????# ## #????????????? | | ???????????????????## ## # " # ##???????????? | | ????????????????????## ##### "# #???????????? | | ?????????????????????## #??## ""## ##???????????? | | ????????????????????### #?## "####????????????? | | ??????????????????### ### ##???????????????? | | ??????????????????# "#???????????????? | | ??????????????????## """ ###???????????????? | | ???????????????????# "**%" #?????????????????? | | ???????????????????# ""%["" ##?????????????????? | | ?????????????????# &"""###??????????????????? | | ?????????????????## ""????????????????????? | | ??????????????????# ""????????????????????? | | ????????????????? """""????????????????????? | | ?????????????????#### """ "????????????????????? | | ????????????????????# ??????????????????????? | | ????????????????????# ???????????????????????? | | ????????????????????# ???????????????????????? | +----------------------------------------------------+ Best States ------------- Heat Dissipation 25 Energy Generation 10 Energy Capacity 125 Matter Stores 285 Matter Capacity 400 Sight Range 16 Terrain Scan Density 10 Evasion (%) 55 Recoil Reduction 2 Item Schematics ----------------- None Robot Schematics ------------------ None Fabricated ------------ Nothing Repaired ---------- Nothing Alien Tech Used ----------------- None Achievements -------------- None Challenges ------------ None Game ------ Seed LatentMatterStorm Manual? 0 Play Time 00:15:50 Cumulative 15.2 hours Start 2025.05.24 @ 04:22:54 End 2025.05.24 @ 04:37:05 Sessions 1 Manual Loads 0 Difficulty Rogue Special Mode None Game No. 19 Rogue 19 Adventurer 0 Explorer 0 Win Type - Total 0 Types 0/0/0/0/0/0/0/0/0/0 Lore% 7 Gallery% 18 Achievement% 15 Wizard Run 0 Options --------- Layout 0 ASCII 0 Keyboard 0 Movement Arrows Keybinds 0 Fullscreen 1 Font 24/Smallcaps Map View 76x50 Zoom Use 0% Tactical HUD 1 Map Filters NONE Filters NONE Steam 1 RUN: 4f206303-684a-4417-8a97-216f9b39f0c2